Workbook

Sheet Calculator
F2: 2019 Expected Contribution Range Calculator
N5: Expected Contribution Range
A6: Slope= | B6: 1.0200425 | I6: Career Path | J6: Broad-band | K6: Max Pay | L6: Retained Pay? | N6: Upper Rail | O6: Standard Pay Line | P6: Lower Rail
A7: GS-1/1 Base Salary= | B7: 19048 | G7: Enter Base Pay/Retained Pay | H7: 100000 | I7: NH | J7: 4 | K7: =VLOOKUP($J$7,MaxPay,MATCH($I$7,PaySched,1)+1,FALSE) -> 138572 | L7: =IF($H$7>$K$7,"Yes","No") -> No | M7: Expected Contribution Range = | N7: =IF(ISERROR(CEILING((LN($O$8)-LN(intercept*1.08))/LN(slope),1)),NA(),CEILING((LN($O$8)-LN(intercept*1.08))/LN(slope),1)) -> 80 | O7: =IF(ISERROR((LN($O$8)-LN(intercept))/LN(slope)),NA(),(LN($O$8)-LN(intercept))/LN(slope)) -> 83.56095472 | P7: =IF(ISERROR(FLOOR((LN($O$8)-LN(intercept*0.92))/LN(slope),1)),NA(),FLOOR((LN($O$8)-LN(intercept*0.92))/LN(slope),1)) -> 87
I8: Click on Boxes for Dropdown List to Select | N8: Pay Used in Calculation: | O8: =IF($L$7="Yes",$K$7,$H$7) -> 100000

Sheet NPR SPL Table
A1: Normal Pay Range and Standard Pay Line for 2019
A2: 15442 | B2: =slope -> 1.0200425 | D2: (Based on 0% Increase)
B4: OCS | C4: SPL | D4: *0.92 Lower Rail | E4: *1.08 Upper Rail | G4: OCS | H4: SPL | I4: *0.92 Lower Rail | J4: *1.08 Upper Rail
A6: GS01/1 | B6: 0 | C6: =intercept -> 19048 | D6: =SUM(C6*0.92) -> 17524.16 | E6: =SUM(C6*1.08) -> 20571.84
B7: 1 | C7: =SUM(C6*$B$2) -> 19429.76954 | D7: =SUM(C7*0.92) -> 17875.38798 | E7: =SUM(C7*1.08) -> 20984.1511 | G7: 51 | H7: =SUM(C56*$B$2) -> 52405.99835 | I7: =SUM(H7*0.92) -> 48213.51848 | J7: =SUM(H7*1.08) -> 56598.47821
B8: 2 | C8: =SUM(C7*$B$2) -> 19819.1907 | D8: =SUM(C8*0.92) -> 18233.65544 | E8: =SUM(C8*1.08) -> 21404.72595 | G8: 52 | H8: =SUM(H7*$B$2) -> 53456.34557 | I8: 49179.83792 | J8: 57732.85321
B9: 3 | C9: 20216.41683 | D9: 18599.10348 | E9: 21833.73017 | G9: 53 | H9: =SUM(H8*$B$2) -> 54527.74437 | I9: 50165.52482 | J9: 58889.96392
B10: 4 | C10: 20621.60436 | D10: 18971.87601 | E10: 22271.33271 | G10: 54 | H10: 55620.61669 | I10: 51170.96735 | J10: 60070.26603
B11: 5 | C11: 21034.91287 | D11: 19352.11984 | E11: 22717.70589 | G11: 55 | H11: 56735.3929 | I11: 52196.56147 | J11: 61274.22433
B12: 6 | C12: 21456.50511 | D12: 19739.9847 | E12: 23173.02551 | G12: 56 | H12: 57872.51201 | I12: 53242.71105 | J12: 62502.31297
B13: 7 | C13: 21886.54711 | D13: 20135.62334 | E13: 23637.47088 | G13: 57 | H13: 59032.42183 | I13: 54309.82809 | J13: 63755.01558
B14: 8 | C14: 22325.20823 | D14: 20539.19157 | E14: 24111.22489 | G14: 58 | H14: 60215.57915 | I14: 55398.33282 | J14: 65032.82548
B15: 9 | C15: 22772.66122 | D15: 20950.84832 | E15: 24594.47411 | G15: 59 | H15: 61422.44989 | I15: 56508.6539 | J15: 66336.24589
B16: 10 | C16: 23229.08228 | D16: 21370.7557 | E16: 25087.40886 | G16: 60 | H16: 62653.50935 | I16: 57641.2286 | J16: 67665.79009
B17: 11 | C17: 23694.65116 | D17: 21799.07907 | E17: 25590.22325 | G17: 61 | H17: 63909.24231 | I17: 58796.50292 | J17: 69021.98169
B18: 12 | C18: 24169.55121 | D18: 22235.98711 | E18: =SUM(C18*1.08) -> 26103.1153 | G18: 62 | H18: 65190.1433 | I18: 59974.93183 | J18: 70405.35476
B19: 13 | C19: 24653.96944 | D19: =SUM(C19*0.92) -> 22681.65188 | E19: 26626.28699 | G19: 63 | H19: 66496.71674 | I19: 61176.9794 | J19: 71816.45408
B20: 14 | C20: =SUM(C19*$B$2) -> 25148.09662 | D20: 23136.24889 | E20: 27159.94435 | G20: 64 | H20: 67829.47719 | I20: 62403.11901 | J20: 73255.83536
B21: 15 | C21: =SUM(C20*$B$2) -> 25652.12735 | D21: 23599.95716 | E21: 27704.29753 | G21: 65 | H21: 69188.94948 | I21: 63653.83353 | J21: 74724.06544
B22: 16 | C22: 26166.26011 | D22: 24072.9593 | E22: 28259.56092 | G22: 66 | H22: 70575.669 | I22: 64929.61548 | J22: 76221.72253
B23: 17 | C23: 26690.69738 | D23: 24555.44159 | E23: 28825.95317 | G23: 67 | H23: 71990.18185 | I23: 66230.9673 | J23: 77749.3964
B24: 18 | C24: 27225.64568 | D24: 25047.59402 | E24: 29403.69733 | G24: 68 | H24: 73433.04507 | I24: 67558.40147 | J24: 79307.68868
B25: 19 | C25: 27771.31568 | D25: 25549.61043 | E25: 29993.02094 | G25: 69 | H25: 74904.82688 | I25: 68912.44073 | J25: 80897.21303
B26: 20 | C26: 28327.92228 | D26: 26061.68849 | E26: 30594.15606 | G26: 70 | H26: 76406.10687 | I26: 70293.61832 | J26: 82518.59542
B27: 21 | C27: 28895.68466 | D27: 26584.02989 | E27: 31207.33943 | G27: 71 | H27: 77937.47627 | I27: 71702.47816 | J27: 84172.47437
B28: 22 | C28: 29474.82642 | D28: 27116.8403 | E28: 31832.81253 | G28: 72 | H28: 79499.53813 | I28: 73139.57508 | J28: 85859.50118
B29: 23 | C29: 30065.57563 | D29: 27660.32958 | E29: 32470.82168 | G29: 73 | H29: 81092.90763 | I29: 74605.47502 | J29: 87580.34024
B30: 24 | C30: 30668.16493 | D30: 28214.71173 | E30: 33121.61812 | G30: 74 | H30: 82718.21223 | I30: 76100.75525 | J30: 89335.66921
B31: 25 | C31: 31282.83162 | D31: 28780.20509 | E31: 33785.45815 | G31: 75 | H31: 84376.092 | I31: 77626.00464 | J31: 91126.17936
B32: 26 | C32: 31909.81777 | D32: 29357.03235 | E32: 34462.6032 | G32: 76 | H32: 86067.19982 | I32: 79181.82384 | J32: 92952.57581
B33: 27 | C33: 32549.3703 | D33: 29945.42067 | E33: 35153.31992 | G33: 77 | H33: 87792.20167 | I33: 80768.82554 | J33: 94815.57781
B34: 28 | C34: 33201.74105 | D34: 30545.60177 | E34: 35857.88033 | G34: 78 | H34: 89551.77688 | I34: 82387.63473 | J34: 96715.91903
B35: 29 | C35: 33867.18695 | D35: 31157.81199 | E35: 36576.5619 | G35: 79 | H35: 91346.61836 | I35: 84038.88889 | J35: 98654.34783
B36: 30 | C36: 34545.97004 | D36: 31782.29244 | E36: 37309.64764 | G36: 80 | H36: 93177.43296 | I36: 85723.23832 | J36: 100631.6276
B37: 31 | C37: 35238.35764 | D37: 32419.28903 | E37: 38057.42626 | G37: 81 | H37: 95044.94166 | I37: 87441.34633 | J37: 102648.537
B38: 32 | C38: 35944.62243 | D38: 33069.05263 | E38: 38820.19222 | G38: 82 | H38: 96949.87991 | I38: 89193.88951 | J38: 104705.8703
B39: 33 | C39: 36665.04252 | D39: 33731.83912 | E39: 39598.24592 | G39: 83 | H39: 98892.99787 | I39: 90981.55804 | J39: 106804.4377
B40: 34 | C40: 37399.90164 | D40: 34407.90951 | E40: 40391.89377 | G40: 84 | H40: 100875.0608 | I40: 92805.05592 | J40: 108945.0656
B41: 35 | C41: 38149.48917 | D41: 35097.53003 | E41: 41201.4483 | G41: 85 | H41: 102896.8492 | I41: 94665.10125 | J41: 111128.5971
B42: 36 | C42: 38914.1003 | D42: 35800.97228 | E42: 42027.22833 | G42: 86 | H42: 104959.1593 | I42: 96562.42655 | J42: 113355.892
B43: 37 | C43: 39694.03616 | D43: 36518.51327 | E43: 42869.55905 | G43: 87 | H43: 107062.8032 | I43: 98497.77898 | J43: 115627.8275
B44: 38 | C44: 40489.60388 | D44: 37250.43557 | E44: 43728.77219 | G44: 88 | H44: 109208.6095 | I44: 100471.9207 | J44: 117945.2982
B45: 39 | C45: 41301.11676 | D45: 37997.02742 | E45: 44605.2061 | G45: 89 | H45: 111397.423 | I45: 102485.6292 | J45: 120309.2169
B46: 40 | C46: 42128.8944 | D46: 38758.58284 | E46: 45499.20595 | G46: 90 | H46: 113630.1059 | I46: 104539.6974 | J46: 122720.5143
B47: 41 | C47: 42973.26276 | D47: 39535.40174 | E47: 46411.12378 | G47: 91 | H47: 115907.5373 | I47: 106634.9343 | J47: 125180.1403
B48: 42 | C48: 43834.55438 | D48: 40327.79003 | E48: 47341.31873 | G48: 92 | H48: 118230.6141 | I48: 108772.165 | J48: 127689.0632
B49: 43 | C49: 44713.10844 | D49: 41136.05976 | E49: 48290.15711 | G49: 93 | H49: 120600.2512 | I49: 110952.2311 | J49: 130248.2713
B50: 44 | C50: 45609.27091 | D50: 41960.52924 | E50: 49258.01259 | G50: 94 | H50: 123017.3817 | I50: 113175.9912 | J50: 132858.7722
B51: 45 | C51: 46523.39473 | D51: 42801.52315 | E51: 50245.2663 | G51: 95 | H51: 125482.9576 | I51: 115444.321 | J51: 135521.5942
B52: 46 | C52: 47455.83986 | D52: 43659.37268 | E52: 51252.30705 | G52: 96 | H52: 127997.9498 | I52: 117758.1138 | J52: 138237.7857
B53: 47 | C53: 48406.97353 | D53: 44534.41565 | E53: 52279.53142 | G53: 97 | H53: 130563.3487 | I53: 120118.2808 | J53: =SUM(H53*1.08) -> 141008.4166
B54: 48 | C54: 49377.1703 | D54: 45426.99668 | E54: 53327.34393 | G54: 98 | H54: 133180.1646 | I54: 122525.7514 | J54: =SUM(H54*1.08) -> 143834.5777
B55: 49 | C55: 50366.81224 | D55: 46337.46726 | E55: 54396.15722 | G55: 99 | H55: 135849.428 | I55: 124981.4738 | J55: =SUM(H55*1.08) -> 146717.3823
B56: 50 | C56: 51376.28907 | D56: 47266.18595 | E56: 55486.3922 | F56: GS15/10 | G56: 100 | H56: 138572.1902 | I56: 127486.415 | J56: =SUM(H56*1.08) -> 149657.9654
G59: Yes
B60: BroadBand | C60: NH | D60: NJ | E60: NK | G60: No
B61: 1 | C61: 34099 | D61: 34099 | E61: 34099
B62: 2 | C62: 69951 | D62: 52341 | E62: 47264
B63: 3 | C63: 99691 | D63: 69951 | E63: 63661
B64: 4 | C64: 138572 | D64: 99691

Sheet Salary Ranges
B2: 2019 Broadband Salary Ranges
B3: Business and Technical Management Professional (NH)
B4: I $19,048-$34,099 (GS 1-4) | C4: II $29,350-$69,951 (GS 5-11) | D4: III $64,490-$99,691 (GS 12-13) | E4: IV $90,621-$138,572 (GS 14-15)
B5: Technical Management Support (NJ)
B6: I $19,048-$34,099 (GS 1-4) | C6: II $29,350-$52,341 (GS 5-8) | D6: III $44,471-$69,951 (GS 9-11) | E6: IV $64,490-$99,691 (GS 12-13)
B7: Administrative Support (NK)
B8: I $19,048-$34,099 (GS 1-4) | C8: II $29,350-$47,264 (GS 5-7) | D8: III $40,263-$63,661 (GS 8-10) | E8: 2019 Broadband Scale (w/o Locality Pay)
